[Event "NED-ch Women 2018"]
[Site "Amsterdam"]
[Date "2018.07.03"]
[Round "2"]
[White "Ratsma, Rosa"]
[Black "Keetman, Maaike"]
[Result "1-0"]
[ECO "C17"]
[WhiteElo "2265"]
[BlackElo "2190"]
[Annotator "NA"]
[PlyCount "141"]
[EventDate "2018.07.02"]
[EventType "tourn"]
[EventCountry "NED"]
[SourceTitle "playchess.com"]
[Source "ChessBase"]
[SourceQuality "1"]
[TimeControl "40/5400+30:1800+30"]

1. e4 {[%emt 0:00:00]} e6 {[%emt 0:00:00]} 2. d4 {[%emt 0:00:01]} d5 {[%emt 0:00:00]} 3. Nc3 {[%emt 0:00:57]} Bb4 {[%emt 0:00:17]} 4. e5 {[%emt 0:00:33]} c5 {[%emt 0:00:10]} 5. Bd2 {[%emt 0:00:40]} cxd4 {[%emt 0:07:37]} 6. Nb5 {[%emt 0:00:15]} Bc5 {[%emt 0:01:20]} 7. b4 {[%emt 0:00:52]} Be7 {[%emt 0:00:24]} 8. Nxd4 $14 {[%emt 0:01:05]} Nc6 {[%emt 0:01:00]} 9. Nxc6 {[%emt 0:00:56]} bxc6 {[%emt 0:00:07]} 10. Qg4 {[%emt 0:00:58]} Kf8 {[%emt 0:05:15]} 11. Bd3 {[%emt 0:03:17]} Qc7 {[%emt 0:07:24]} 12. f4 {[%emt 0:05:16]} h5 {[%emt 0:06:11]} 13. Qe2 {[%emt 0:05:01]} c5 {[%emt 0:17:07]} 14. bxc5 {[%emt 0:04:20]} Bxc5 {[%emt 0:00:33]} 15. Rb1 {[%emt 0:07:26]} Ne7 {[%emt 0:03:20]} 16. Nf3 {[%emt 0:03:01]} Rb8 {[%emt 0:05:39]} 17. Rb3 {[%emt 0:07:13]} Bd7 {[%emt 0:12:38]} 18. Be3 {[%emt 0:11:48]} Rxb3 {[%emt 0:03:52]} 19. axb3 {[%emt 0:02:49]} Qb6 {[%emt 0:01:03]} 20. Kf2 {[%emt 0:07:42]} d4 {[%emt 0:04:03]} 21. Bd2 {[%emt 0:00:42]} Bb5 {[%emt 0:01:36]} 22. b4 {[%emt 0:12:40]} Bxd3 {[%emt 0:01:25]} 23. Qxd3 {[%emt 0:04:03]} Bxb4 {[%emt 0:00:29]} 24. Bxb4 {[%emt 0:00:29]} Qxb4 {[%emt 0:00:13]} 25. Qxd4 {[%emt 0:00:46]} Qxd4+ {[%emt 0:04:08]} 26. Nxd4 {[%emt 0:00:59]} g5 {[%emt 0:03:07]} 27. fxg5 {[%emt 0:02:52]} Kg7 {[%emt 0:00:26]} 28. Ke3 {[%emt 0:03:40]} Rc8 {[%emt 0:03:44]} 29. Rb1 {[%emt 0:02:45]} Nd5+ {[%emt 0:01:48]} 30. Kd2 {[%emt 0:00:51]} Nb6 {[%emt 0:04:01]} 31. Kd3 {[%emt 0:02:27]} Kg6 {[%emt 0:03:00]} 32. h4 {[%emt 0:03:31]} Nd7 {[%emt 0:01:29]} 33. Rb5 {[%emt 0:02:56]} Nb6 {[%emt 0:01:26]} 34. g3 {[%emt 0:01:35]} Nc4 {[%emt 0:00:36]} 35. Ke4 {[%emt 0:01:44]} Nd2+ {[%emt 0:00:25]} 36. Kd3 {[%emt 0:00:16]} Nc4 {[%emt 0:00:22]} 37. Nf3 {[%emt 0:00:53]} Na3 {[%emt 0:01:08]} 38. Rb2 {[%emt 0:00:51]} Rc7 {[%emt 0:00:34]} 39. Ra2 {[%emt 0:00:43]} Nc4 {[%emt 0:00:31]} 40. c3 {[%emt 0:00:28]} Kf5 {[%emt 0:00:58]} 41. Nd4+ {[%emt 0:10:57]} Kg4 {[%emt 0:08:13]} 42. Re2 {[%emt 0:01:33]} Kxg3 {[%emt 0:03:13]} 43. g6 {[%emt 0:05:26]} fxg6 {[%emt 0:04:07]} 44. Nxe6 {[%emt 0:00:07]} Rc8 {[%emt 0:00:09]} 45. Re4 {[%emt 0:01:37]} Nb6 {[%emt 0:00:39]} 46. Nd4 {[%emt 0:02:49]} Nd7 {[%emt 0:01:33]} 47. Ne2+ {[%emt 0:01:11]} Kh3 {[%emt 0:00:36]} 48. Ke3 {[%emt 0:02:08]} Re8 {[%emt 0:05:59]} 49. Ng1+ {[%emt 0:01:39]} Kg3 {[%emt 0:00:51]} 50. Ne2+ {[%emt 0:01:27]} Kh3 {[%emt 0:00:26]} 51. Kd4 {[%emt 0:00:54]} Rd8 {[%emt 0:00:44]} 52. Nf4+ {[%emt 0:00:30]} Kg3 {[%emt 0:00:26]} 53. Nd5 {[%emt 0:00:57]} g5 {[%emt 0:02:28]} 54. hxg5 {[%emt 0:01:34]} h4 {[%emt 0:00:09]} 55. e6 {[%emt 0:01:22]} h3 {[%emt 0:02:56]} 56. exd7 {[%emt 0:02:40]} Rxd7 {[%emt 0:02:01]} 57. Re3+ {[%emt 0:01:13]} Kg2 {[%emt 0:01:01]} 58. Ke5 {[%emt 0:00:44]} h2 {[%emt 0:00:16]} 59. Nf4+ {[%emt 0:00:27]} Kf1 {[%emt 0:01:25]} 60. Rh3 {[%emt 0:00:31]} Kg1 {[%emt 0:00:08]} 61. Ne2+ {[%emt 0:00:39]} Kg2 {[%emt 0:00:06]} 62. Nf4+ {[%emt 0:00:10]} Kg1 {[%emt 0:00:03]} 63. g6 {[%emt 0:00:54]} h1=Q {[%emt 0:00:28]} 64. Rxh1+ {[%emt 0:00:11]} Kxh1 {[%emt 0:00:03]} 65. Ne6 {[%emt 0:00:48]} Rd2 {[%emt 0:03:43]} 66. g7 {[%emt 0:00:21]} Rg2 {[%emt 0:00:18]} 67. Kf4 {[%emt 0:00:35]} Rf2+ {[%emt 0:00:31]} 68. Ke5 {[%emt 0:00:25]} Rg2 {[%emt 0:00:11]} 69. Kf6 {[%emt 0:00:09]} Rf2+ {[%emt 0:00:05]} 70. Kg6 {[%emt 0:00:12]} Rg2+ {[%emt 0:00:11]} 71. Ng5 {[%emt 0:00:10]} 1-0

[Event "NED-ch Women 2018"]
[Site "Amsterdam"]
[Date "2018.07.03"]
[Round "2"]
[White "De Mie, Mariska de"]
[Black "Lanchava, Tea"]
[Result "0-1"]
[ECO "B07"]
[WhiteElo "2193"]
[BlackElo "2310"]
[Annotator "NA"]
[PlyCount "92"]
[EventDate "2018.07.02"]
[EventType "tourn"]
[EventCountry "NED"]
[SourceTitle "playchess.com"]
[Source "ChessBase"]
[SourceQuality "1"]
[TimeControl "40/5400+30:1800+30"]

1. e4 {[%emt 0:00:00]} d6 {[%emt 0:00:00]} 2. d4 {[%emt 0:00:00]} Nf6 {[%emt 0:00:00]} 3. Nc3 {[%emt 0:00:00]} g6 {[%emt 0:00:05]} 4. h3 {[%emt 0:02:50]} Bg7 {[%emt 0:00:58] LiveBook: 422 Games} 5. Be3 {[%emt 0:02:32]} a6 {[%emt 0:00:26]} 6. g4 {[%emt 0:08:55]} b5 {[%emt 0:03:41]} 7. Bg2 {[%emt 0:00:32]} Bb7 {[%emt 0:00:28]} 8. a3 {[%emt 0:01:48]} Nfd7 {[%emt 0:03:55]} 9. Qd2 $11 {[%emt 0:04:42]} Nb6 {[%emt 0:00:57]} 10. b3 {[%emt 0:00:57]} h6 {[%emt 0:07:13]} 11. Nge2 {[%emt 0:02:15]} N8d7 {[%emt 0:03:00]} 12. d5 {[%emt 0:16:49]} c5 {[%emt 0:05:25]} 13. dxc6 {[%emt 0:00:35]} Bxc6 {[%emt 0:00:11]} 14. Bd4 {[%emt 0:00:34]} Nf6 {[%emt 0:07:04]} 15. O-O {[%emt 0:09:44]} Qc7 {[%emt 0:07:12]} 16. f4 {[%emt 0:04:26]} e5 {[%emt 0:06:30]} 17. Be3 {[%emt 0:02:02]} Rd8 {[%emt 0:02:35]} 18. Rad1 {[%emt 0:15:32]} O-O {[%emt 0:02:24]} 19. fxe5 {[%emt 0:03:18]} dxe5 {[%emt 0:00:30]} 20. Qc1 {[%emt 0:00:13]} Rxd1 {[%emt 0:02:26]} 21. Rxd1 {[%emt 0:00:22]} h5 {[%emt 0:02:10]} 22. g5 {[%emt 0:00:57]} Nfd7 {[%emt 0:01:27]} 23. Qd2 {[%emt 0:01:28]} Rc8 {[%emt 0:00:48]} 24. Qe1 {[%emt 0:09:18]} Bf8 {[%emt 0:01:01]} 25. Bc1 {[%emt 0:03:36]} Bb7 {[%emt 0:01:30]} 26. Qg3 {[%emt 0:01:58]} a5 {[%emt 0:00:39]} 27. Qf3 {[%emt 0:04:15]} b4 {[%emt 0:03:23]} 28. axb4 {[%emt 0:00:53]} axb4 {[%emt 0:00:17]} 29. Rf1 {[%emt 0:01:21]} Nc5 {[%emt 0:01:41]} 30. Nd5 {[%emt 0:01:14]} Nxd5 {[%emt 0:06:34]} 31. exd5 {[%emt 0:00:02]} Rd8 {[%emt 0:00:46]} 32. c4 {[%emt 0:01:04]} bxc3 {[%emt 0:00:08]} 33. Qxc3 {[%emt 0:00:39]} Bxd5 {[%emt 0:00:47]} 34. Bxd5 {[%emt 0:01:23]} Rxd5 {[%emt 0:00:04]} 35. Bb2 {[%emt 0:00:23]} Qb6 {[%emt 0:00:43]} 36. Qf3 {[%emt 0:00:38]} Qe6 {[%emt 0:00:59]} 37. b4 {[%emt 0:00:28]} Rd3 {[%emt 0:00:26]} 38. Qg2 {[%emt 0:00:38]} Na4 {[%emt 0:00:31]} 39. Ba1 {[%emt 0:00:17]} Rxh3 {[%emt 0:02:57]} 40. Rf6 {[%emt 0:00:35]} Qd7 {[%emt 0:04:35]} 41. Ng3 {[%emt 0:09:11]} h4 {[%emt 0:13:09]} 42. Ne4 {[%emt 0:02:18]} Qd3 {[%emt 0:04:54]} 43. Bxe5 {[%emt 0:07:24]} Bg7 {[%emt 0:02:40]} 44. Qa2 {[%emt 0:03:55]} Qe3+ {[%emt 0:06:43]} 45. Rf2 {[%emt 0:02:14]} Qe1+ {[%emt 0:00:57]} 46. Kg2 {[%emt 0:01:03]} Qh1# {[%emt 0:01:42]} 0-1

[Event "NED-ch Women 2018"]
[Site "Amsterdam"]
[Date "2018.07.07"]
[Round "5"]
[White "Peng, Zhaoqin"]
[Black "Lanchava, Tea"]
[Result "1-0"]
[ECO "E94"]
[WhiteElo "2352"]
[BlackElo "2310"]
[Annotator "ChessBase"]
[PlyCount "145"]
[EventDate "2018.07.02"]
[EventType "tourn"]
[EventCountry "NED"]
[SourceTitle "playchess.com"]
[Source "ChessBase"]
[SourceQuality "1"]
[TimeControl "40/5400+30:1800+30"]

1. d4 {[%emt 0:00:00]} d6 {[%emt 0:00:00]} 2. c4 {[%emt 0:00:00]} Nf6 {[%emt 0:00:36]} 3. Nc3 {[%emt 0:00:05]} Nbd7 {[%emt 0:00:22]} 4. e4 {[%emt 0:00:57]} c6 {[%emt 0:00:17]} 5. Nf3 {[%emt 0:02:12]} e5 {[%emt 0:00:26]} 6. Be2 {[%emt 0:00:14]} g6 {[%emt 0:00:19]} 7. O-O {[%emt 0:01:12]} Bg7 {[%emt 0:00:15]} 8. Be3 {[%emt 0:03:55]} O-O {[%emt 0:01:23]} 9. d5 {[%emt 0:00:09]} c5 {[%emt 0:00:09]} 10. Nd2 {[%emt 0:01:39]} h6 {[%emt 0:03:34]} 11. Qc2 {[%emt 0:10:04]} Nh7 {[%emt 0:01:40]} 12. Kh1 {[%emt 0:04:47]} a6 {[%emt 0:02:49]} 13. a3 {[%emt 0:01:13]} f5 {[%emt 0:01:31]} 14. exf5 {[%emt 0:00:56]} gxf5 {[%emt 0:00:28]} 15. f4 {[%emt 0:00:01]} b6 {[%emt 0:07:26]} 16. Rae1 {[%emt 0:02:22]} Qf6 {[%emt 0:03:12]} 17. fxe5 {[%emt 0:03:26]} Nxe5 {[%emt 0:04:23]} 18. Nf3 {[%emt 0:13:57]} Ng6 {[%emt 0:04:27]} 19. Bd3 {[%emt 0:00:35]} Bd7 {[%emt 0:01:05]} 20. g4 {[%emt 0:01:18]} Rae8 {[%emt 0:20:19]} 21. gxf5 {[%emt 0:23:00]} Bxf5 {[%emt 0:01:05]} 22. Nd2 {[%emt 0:04:23]} Bxd3 {[%emt 0:07:46]} 23. Qxd3 {[%emt 0:00:02]} Nf4 {[%emt 0:00:21]} 24. Bxf4 {[%emt 0:02:26]} Rxe1 {[%emt 0:00:26]} 25. Rxe1 {[%emt 0:00:03]} Qxf4 {[%emt 0:00:15]} 26. Rf1 {[%emt 0:04:02]} Qh4 {[%emt 0:02:00]} 27. Rxf8+ {[%emt 0:00:39]} Nxf8 {[%emt 0:00:29]} 28. Nf3 {[%emt 0:02:24]} Qf4 {[%emt 0:00:59]} 29. Ne2 {[%emt 0:00:51]} Qf6 {[%emt 0:01:09]} 30. Ng3 {[%emt 0:04:04]} Qxb2 {[%emt 0:05:52]} 31. Nf5 {[%emt 0:00:10]} Qc1+ {[%emt 0:02:33]} 32. Kg2 {[%emt 0:00:21]} Qf4 {[%emt 0:03:43]} 33. Ne7+ {[%emt 0:05:02]} Kf7 {[%emt 0:01:09]} 34. Qf5+ {[%emt 0:00:13]} Qxf5 {[%emt 0:00:27]} 35. Nxf5 {[%emt 0:00:01]} Nd7 {[%emt 0:08:19]} 36. Nxd6+ {[%emt 0:00:23]} Kg6 {[%emt 0:01:04]} 37. a4 {[%emt 0:00:17]} Bf8 {[%emt 0:00:35]} 38. Ne4 {[%emt 0:03:51]} Kf5 {[%emt 0:01:02]} 39. Ng3+ {[%emt 0:04:57]} Kf4 {[%emt 0:00:24]} 40. Kf2 {[%emt 0:00:39]} Nf6 {[%emt 0:00:29]} 41. Ke2 {[%emt 0:07:06]} h5 {[%emt 0:03:53]} 42. Nf1 {[%emt 0:12:35]} Ne4 {[%emt 0:03:48]} 43. Nh4 {[%emt 0:01:00]} Bd6 {[%emt 0:01:22]} 44. Ng2+ {[%emt 0:01:35]} Kg4 {[%emt 0:00:25]} 45. Nge3+ {[%emt 0:01:08]} Kg5 {[%emt 0:07:23]} 46. Kd3 {[%emt 0:00:56]} Nf6 {[%emt 0:01:58]} 47. h3 {[%emt 0:03:24]} Kf4 {[%emt 0:03:38]} 48. Ng2+ {[%emt 0:00:19]} Kf3 {[%emt 0:00:55]} 49. Nh4+ {[%emt 0:00:11]} Kf2 {[%emt 0:07:13]} 50. Nd2 {[%emt 0:00:42]} Bb8 {[%emt 0:03:26]} 51. Ne4+ {[%emt 0:02:15]} Nxe4 {[%emt 0:00:08]} 52. Kxe4 {[%emt 0:00:01]} Kg3 {[%emt 0:00:13]} 53. Nf5+ {[%emt 0:00:48]} Kxh3 {[%emt 0:00:30]} 54. Kf3 {[%emt 0:00:34]} Kh2 {[%emt 0:04:38]} 55. d6 {[%emt 0:00:47]} Kg1 {[%emt 0:00:17]} 56. d7 {[%emt 0:00:31]} Bc7 {[%emt 0:00:05]} 57. Ng7 {[%emt 0:00:22]} h4 {[%emt 0:04:00]} 58. Kg4 {[%emt 0:01:20]} b5 {[%emt 0:01:00]} 59. Ne6 {[%emt 0:00:53]} Ba5 {[%emt 0:00:17]} 60. axb5 {[%emt 0:00:22]} axb5 {[%emt 0:00:06]} 61. cxb5 {[%emt 0:00:01]} c4 {[%emt 0:00:24]} 62. d8=Q {[%emt 0:03:46]} Bxd8 {[%emt 0:00:10]} 63. Nxd8 {[%emt 0:00:01]} c3 {[%emt 0:00:01]} 64. Ne6 {[%emt 0:00:18]} Kh2 {[%emt 0:07:12]} 65. Nd4 {[%emt 0:00:51]} h3 {[%emt 0:00:11]} 66. b6 {[%emt 0:01:33]} Kg2 {[%emt 0:00:05]} 67. b7 {[%emt 0:00:22]} h2 {[%emt 0:00:15]} 68. b8=Q {[%emt 0:00:06]} h1=Q {[%emt 0:00:05]} 69. Qg3+ {[%emt 0:00:52]} Kf1 {[%emt 0:00:07]} 70. Qd3+ {[%emt 0:00:13]} Kg1 {[%emt 0:02:17]} 71. Qe3+ {[%emt 0:00:51]} Kg2 {[%emt 0:00:38]} 72. Qf3+ {[%emt 0:00:37]} Kh2 {[%emt 0:00:13]} 73. Qg3# {[%emt 0:00:35]} 1-0

[Event "NED-ch Women 2018"]
[Site "Amsterdam"]
[Date "2018.07.07"]
[Round "5"]
[White "Paulet, Iozefina"]
[Black "Ratsma, Rosa"]
[Result "0-1"]
[ECO "B51"]
[WhiteElo "2286"]
[BlackElo "2265"]
[Annotator "ChessBase"]
[PlyCount "66"]
[EventDate "2018.07.02"]
[EventType "tourn"]
[EventCountry "NED"]
[SourceTitle "playchess.com"]
[Source "ChessBase"]
[SourceQuality "1"]
[TimeControl "40/5400+30:1800+30"]

1. e4 {[%emt 0:00:00]} c5 {[%emt 0:00:00]} 2. Nf3 {[%emt 0:00:00]} d6 {[%emt 0:00:00]} 3. Bb5+ {[%emt 0:00:00]} Nd7 {[%emt 0:00:03]} 4. O-O {[%emt 0:01:44]} a6 {[%emt 0:00:15]} 5. Bd3 {[%emt 0:00:11]} Ngf6 {[%emt 0:00:36]} 6. Re1 {[%emt 0:00:27]} b5 {[%emt 0:00:44]} 7. c3 {[%emt 0:00:05]} Bb7 {[%emt 0:00:35]} 8. Bc2 {[%emt 0:00:11]} e5 {[%emt 0:02:32]} 9. d4 {[%emt 0:01:03]} cxd4 {[%emt 0:00:23]} 10. cxd4 {[%emt 0:00:04]} Be7 {[%emt 0:00:16]} 11. d5 {[%emt 0:05:15]} O-O {[%emt 0:06:44]} 12. Nc3 {[%emt 0:00:53]} Qc7 {[%emt 0:02:51]} 13. a3 {[%emt 0:03:10]} Rfc8 {[%emt 0:02:05]} 14. Nh4 {[%emt 0:10:16]} g6 {[%emt 0:05:27]} 15. Bh6 {[%emt 0:14:35]} a5 {[%emt 0:10:22]} 16. Rc1 {[%emt 0:12:15]} b4 {[%emt 0:06:27]} 17. Ne2 {[%emt 0:00:53]} Ng4 {[%emt 0:06:10]} 18. Bd2 {[%emt 0:15:34]} Bxh4 {[%emt 0:14:14]} 19. Ng3 {[%emt 0:00:10]} h5 {[%emt 0:00:58]} 20. h3 {[%emt 0:03:13]} Ngf6 {[%emt 0:02:56]} 21. Nf5 gxf5 {[%emt 0:03:08]} 22. g3 {[%emt 0:14:08]} Kh8 {[%emt 0:06:19]} 23. Qf3 {[%emt 0:05:25]} f4 {[%emt 0:06:56]} 24. Bxf4 {[%emt 0:01:16]} Rg8 {[%emt 0:01:07]} 25. Be3 {[%emt 0:01:45]} Qd8 {[%emt 0:04:26]} 26. Ba4 {[%emt 0:00:13]} Nf8 {[%emt 0:02:27]} 27. Bc6 {[%emt 0:00:25]} Bxc6 {[%emt 0:01:34]} 28. Rxc6 {[%emt 0:02:12]} N8h7 {[%emt 0:03:03]} 29. Kh2 {[%emt 0:00:23]} Bg5 {[%emt 0:00:40]} 30. Bb6 {[%emt 0:00:20]} Qd7 {[%emt 0:01:35]} 31. Qd1 {[%emt 0:03:10]} Rab8 {[%emt 0:01:31]} 32. axb4 {[%emt 0:00:55]} axb4 {[%emt 0:00:31]} 33. Qa4 {[%emt 0:00:11]} Rxb6 {[%emt 0:00:14]} 0-1

[Event "NED-ch Women 2018"]
[Site "Amsterdam"]
[Date "2018.07.07"]
[Round "5"]
[White "Hortensius, Lisa"]
[Black "De Mie, Mariska"]
[Result "1/2-1/2"]
[ECO "B41"]
[WhiteElo "2169"]
[BlackElo "2193"]
[Annotator "ChessBase"]
[PlyCount "181"]
[EventDate "2018.07.02"]
[EventType "tourn"]
[EventCountry "NED"]
[SourceTitle "playchess.com"]
[Source "ChessBase"]
[SourceQuality "1"]
[TimeControl "40/5400+30:1800+30"]

1. e4 {[%emt 0:00:00]} c5 {[%emt 0:00:00]} 2. Nf3 {[%emt 0:00:00]} e6 {[%emt 0:00:00]} 3. d4 {[%emt 0:00:07]} cxd4 {[%emt 0:00:00]} 4. Nxd4 {[%emt 0:00:06]} a6 {[%emt 0:00:00]} 5. Be2 {[%emt 0:00:50]} Nf6 {[%emt 0:06:20]} 6. Nc3 {[%emt 0:01:32]} Bb4 {[%emt 0:02:25]} 7. Qd3 {[%emt 0:02:40]} d5 {[%emt 0:09:33]} 8. exd5 {[%emt 0:06:31]} Nxd5 {[%emt 0:01:43]} 9. O-O {[%emt 0:07:56]} Nxc3 {[%emt 0:05:50]} 10. bxc3 {[%emt 0:00:17]} Be7 {[%emt 0:00:41]} 11. Qg3 {[%emt 0:16:10]} O-O {[%emt 0:01:36]} 12. Rd1 {[%emt 0:08:07]} Qa5 {[%emt 0:04:32]} 13. Bf4 {[%emt 0:12:13]} Nd7 {[%emt 0:05:19]} 14. a4 {[%emt 0:11:09]} Re8 {[%emt 0:12:39]} 15. Bf3 {[%emt 0:10:54]} Bf6 {[%emt 0:06:36]} 16. Bd2 {[%emt 0:04:01]} Ne5 {[%emt 0:03:09]} 17. Be4 {[%emt 0:02:13]} Nc4 {[%emt 0:06:01]} 18. Bxh7+ {[%emt 0:04:39]} Kxh7 {[%emt 0:09:14]} 19. Qd3+ {[%emt 0:00:10]} g6 {[%emt 0:03:13]} 20. Qxc4 {[%emt 0:00:13]} Kg7 {[%emt 0:02:00]} 21. Nb3 {[%emt 0:02:33]} Qh5 {[%emt 0:02:13]} 22. Bf4 {[%emt 0:01:26]} e5 {[%emt 0:02:55]} 23. Bg3 {[%emt 0:00:21]} Bf5 {[%emt 0:03:51]} 24. Nd2 {[%emt 0:04:18]} Rac8 {[%emt 0:03:26]} 25. Qb3 {[%emt 0:01:13]} Qe2 {[%emt 0:01:13]} 26. Qb1 {[%emt 0:02:29]} Rxc3 {[%emt 0:03:06]} 27. Nf1 {[%emt 0:00:31]} Bxc2 {[%emt 0:01:09]} 28. Re1 {[%emt 0:00:16]} Bxb1 {[%emt 0:00:58]} 29. Rxe2 {[%emt 0:00:04]} Bd3 {[%emt 0:00:19]} 30. Ree1 {[%emt 0:00:57]} b5 {[%emt 0:02:13]} 31. axb5 {[%emt 0:00:16]} axb5 {[%emt 0:00:01]} 32. Ne3 {[%emt 0:00:23]} Rd8 {[%emt 0:01:19]} 33. Ng4 {[%emt 0:00:54]} Rd5 {[%emt 0:00:56]} 34. Ra6 {[%emt 0:00:42]} Bg5 {[%emt 0:01:36]} 35. Bxe5+ {[%emt 0:00:20]} Rxe5 {[%emt 0:00:05]} 36. Nxe5 {[%emt 0:00:07]} Bf5 {[%emt 0:00:33]} 37. Rb6 {[%emt 0:01:05]} Rc5 {[%emt 0:00:58]} 38. Nf3 {[%emt 0:00:28]} Bf6 {[%emt 0:00:26]} 39. h3 {[%emt 0:00:36]} Bc3 {[%emt 0:00:21]} 40. Rc1 {[%emt 0:00:36]} b4 {[%emt 0:00:47]} 41. Nd2 {[%emt 0:10:37]} Re5 {[%emt 0:04:15]} 42. Nc4 {[%emt 0:07:43]} Re2 {[%emt 0:01:16]} 43. Ne3 {[%emt 0:03:17]} Be6 {[%emt 0:01:50]} 44. Rb1 {[%emt 0:04:07]} Ra2 {[%emt 0:03:30]} 45. R6xb4 {[%emt 0:02:29]} Bxb4 {[%emt 0:00:09]} 46. Rxb4 {[%emt 0:00:04]} Ra1+ {[%emt 0:00:17]} 47. Kh2 {[%emt 0:00:09]} Kf6 {[%emt 0:01:11]} 48. Kg3 {[%emt 0:01:23]} Ra5 {[%emt 0:00:27]} 49. Kf3 {[%emt 0:01:33]} Ra3 {[%emt 0:03:58]} 50. Rb5 {[%emt 0:01:59]} Ra4 {[%emt 0:02:36]} 51. Kg3 {[%emt 0:00:24]} Kg7 {[%emt 0:02:49]} 52. Nd5 {[%emt 0:01:02]} Ra3+ {[%emt 0:01:48]} 53. f3 {[%emt 0:00:18]} Bxd5 {[%emt 0:00:15]} 54. Rxd5 {[%emt 0:00:05]} Ra1 {[%emt 0:01:00]} 55. h4 {[%emt 0:00:54]} Kh6 {[%emt 0:01:44]} 56. Rd7 {[%emt 0:00:40]} Kg7 {[%emt 0:00:52]} 57. Kg4 {[%emt 0:01:00]} Ra4+ {[%emt 0:01:15]} 58. f4 {[%emt 0:00:34]} Ra2 {[%emt 0:00:58]} 59. g3 {[%emt 0:00:23]} Ra5 {[%emt 0:00:38]} 60. Re7 {[%emt 0:00:34]} Kf6 {[%emt 0:00:49]} 61. Re3 {[%emt 0:00:28]} Kg7 {[%emt 0:02:11]} 62. Re5 {[%emt 0:00:48]} Ra3 {[%emt 0:01:30]} 63. h5 {[%emt 0:00:28]} Ra6 {[%emt 0:01:41]} 64. hxg6 {[%emt 0:00:22]} Kxg6 {[%emt 0:00:59]} 65. Rg5+ {[%emt 0:00:49]} Kf6 {[%emt 0:00:34]} 66. Rf5+ {[%emt 0:00:13]} Kg6 {[%emt 0:00:09]} 67. Rb5 {[%emt 0:00:18]} Rc6 {[%emt 0:02:07]} 68. Rb3 {[%emt 0:00:47]} Kf6 {[%emt 0:00:52]} 69. Kf3 {[%emt 0:00:10]} Rc1 {[%emt 0:00:29]} 70. Rb6+ {[%emt 0:00:44]} Kg7 {[%emt 0:01:28]} 71. Kg4 {[%emt 0:00:23]} Rc5 {[%emt 0:01:35]} 72. f5 {[%emt 0:01:08]} f6 {[%emt 0:00:50]} 73. Rb4 {[%emt 0:00:29]} Rc7 {[%emt 0:00:12]} 74. Kh5 {[%emt 0:00:27]} Kf7 {[%emt 0:00:20]} 75. g4 {[%emt 0:00:27]} Ra7 {[%emt 0:00:15]} 76. g5 {[%emt 0:00:17]} fxg5 {[%emt 0:00:16]} 77. Kxg5 {[%emt 0:00:04]} Ra6 {[%emt 0:00:15]} 78. Rb7+ {[%emt 0:00:25]} Kf8 {[%emt 0:00:27]} 79. Rh7 {[%emt 0:00:46]} Rb6 {[%emt 0:00:16]} 80. Rh8+ {[%emt 0:00:34]} Kg7 {[%emt 0:00:12]} 81. Ra8 {[%emt 0:00:09]} Rc6 {[%emt 0:00:19]} 82. Ra7+ {[%emt 0:00:28]} Kf8 {[%emt 0:00:11]} 83. Rd7 {[%emt 0:00:33]} Ra6 {[%emt 0:00:05]} 84. Kf4 {[%emt 0:00:40]} Ra4+ {[%emt 0:00:27]} 85. Ke5 {[%emt 0:00:13]} Ra5+ {[%emt 0:00:15]} 86. Kf6 {[%emt 0:01:02]} Ra6+ {[%emt 0:00:04]} 87. Kg5 {[%emt 0:00:05]} Rb6 {[%emt 0:00:05]} 88. Ra7 {[%emt 0:00:26]} Rc6 {[%emt 0:00:23]} 89. f6 {[%emt 0:00:28]} Rc1 {[%emt 0:00:05]} 90. Kg6 {[%emt 0:00:28]} Rg1+ {[%emt 0:00:08]} 91. Kf5 {[%emt 0:00:24]} 1/2-1/2

[Event "NED-ch Women 2018"]
[Site "Amsterdam"]
[Date "2018.07.07"]
[Round "5"]
[White "Keetman, Maaike"]
[Black "Haast, Anne"]
[Result "0-1"]
[ECO "C45"]
[WhiteElo "2151"]
[BlackElo "2342"]
[Annotator "ChessBase"]
[PlyCount "110"]
[EventDate "2018.07.02"]
[EventType "tourn"]
[EventCountry "NED"]
[SourceTitle "playchess.com"]
[Source "ChessBase"]
[SourceQuality "1"]
[TimeControl "40/5400+30:1800+30"]

1. e4 {[%emt 0:00:00]} e5 {[%emt 0:00:00]} 2. Nf3 {[%emt 0:00:00]} Nc6 {[%emt 0:00:00]} 3. d4 {[%emt 0:00:00]} exd4 {[%emt 0:00:16]} 4. Nxd4 {[%emt 0:00:00]} Nf6 {[%emt 0:00:42]} 5. Nxc6 {[%emt 0:00:11]} bxc6 {[%emt 0:00:28]} 6. e5 {[%emt 0:00:06]} Qe7 {[%emt 0:00:17]} 7. Qe2 {[%emt 0:00:06]} Nd5 {[%emt 0:00:14]} 8. h4 {[%emt 0:00:18]} Bb7 {[%emt 0:16:21]} 9. c4 {[%emt 0:02:22]} Nb6 {[%emt 0:00:40]} 10. Rh3 {[%emt 0:01:16]} Qe6 {[%emt 0:04:16]} 11. Bf4 {[%emt 0:13:02]} a5 {[%emt 0:19:59]} 12. Nd2 {[%emt 0:06:29]} O-O-O {[%emt 0:04:02]} 13. O-O-O {[%emt 0:03:28]} a4 {[%emt 0:02:19]} 14. Ne4 {[%emt 0:10:08]} f6 {[%emt 0:03:19]} 15. exf6 {[%emt 0:11:28]} gxf6 {[%emt 0:08:09]} 16. Qc2 {[%emt 0:11:49]} c5 {[%emt 0:08:50]} 17. Re3 {[%emt 0:05:23]} Qf7 {[%emt 0:00:23]} 18. Ng3 {[%emt 0:12:36]} d5 {[%emt 0:05:55]} 19. Qf5+ {[%emt 0:02:59]} Kb8 {[%emt 0:00:10]} 20. Re6 {[%emt 0:00:39]} Bd6 {[%emt 0:06:29]} 21. Rxf6 {[%emt 0:01:17]} Qe8 {[%emt 0:01:41]} 22. Re6 {[%emt 0:01:39]} Qf8 {[%emt 0:00:01]} 23. Rf6 {[%emt 0:00:39]} Qe8 {[%emt 0:00:01]} 24. Bg5 {[%emt 0:02:55]} a3 {[%emt 0:01:36]} 25. Re6 {[%emt 0:01:40]} axb2+ {[%emt 0:00:24]} 26. Kb1 {[%emt 0:00:20]} Qa4 {[%emt 0:00:57]} 27. Qc2 {[%emt 0:00:21]} Rdf8 {[%emt 0:00:56]} 28. Bf6 {[%emt 0:04:16]} Rhg8 {[%emt 0:00:15]} 29. Bd3 {[%emt 0:00:21]} Bc8 {[%emt 0:01:34]} 30. Rxd6 {[%emt 0:00:27]} cxd6 {[%emt 0:00:30]} 31. Be7 {[%emt 0:00:37]} Rxf2 {[%emt 0:03:22]} 32. Bxd6+ {[%emt 0:00:10]} Ka7 {[%emt 0:01:40]} 33. Rd2 {[%emt 0:01:32]} Qxc2+ {[%emt 0:01:16]} 34. Rxc2 {[%emt 0:00:16]} Rxc2 {[%emt 0:01:22]} 35. Kxc2 {[%emt 0:00:37]} dxc4 {[%emt 0:02:58]} 36. Bxh7 {[%emt 0:00:29]} Rg7 {[%emt 0:00:40]} 37. Be4 {[%emt 0:00:48]} Na4 {[%emt 0:00:34]} 38. h5 {[%emt 0:05:09]} Rxg3 {[%emt 0:04:39]} 39. Bxg3 {[%emt 0:00:16]} b1=Q+ {[%emt 0:00:16]} 40. Kxb1 {[%emt 0:00:05]} Nc3+ {[%emt 0:00:03]} 41. Kb2 {[%emt 0:31:51]} Nxe4 {[%emt 0:30:02]} 42. Bf4 {[%emt 0:02:03]} Kb6 {[%emt 0:01:06]} 43. h6 {[%emt 0:00:00]} Bf5 {[%emt 0:00:00]} 44. g4 {[%emt 0:00:00]} Bg6 {[%emt 0:00:00]} 45. Be3 {[%emt 0:00:00]} Kb5 {[%emt 0:00:00]} 46. Ka3 {[%emt 0:00:00]} c3 {[%emt 0:00:00]} 47. Kb3 {[%emt 0:00:00]} c4+ {[%emt 0:00:00]} 48. Kc2 {[%emt 0:00:00]} Nf6+ {[%emt 0:00:00]} 49. Kxc3 {[%emt 0:00:00]} Nd5+ {[%emt 0:00:00]} 50. Kd4 {[%emt 0:00:00]} Nxe3 {[%emt 0:00:00]} 51. Kxe3 {[%emt 0:00:00]} c3 {[%emt 0:00:00]} 52. Ke2 {[%emt 0:00:00]} Ka4 {[%emt 0:00:00]} 53. Kd1 {[%emt 0:00:00]} Ka3 {[%emt 0:00:00]} 54. Kc1 {[%emt 0:00:00]} Kxa2 {[%emt 0:00:13]} 55. g5 {[%emt 0:00:00]} Kb3 {[%emt 0:00:00]} 0-1